bitfinex/quotes_ETHUSD_20250507
["timestamp","ask_amount","ask_price","bid_price","bid_amount"]
[1746643910925,5.55166608,1801.3,1800.9,10.63276613]
[1746643911111,0.10438512,1801.0,1800.9,5.08]
[1746643911328,5.55224174,1801.1,1800.9,5.08]
[1746643911489,0.10441503,1801.0,1800.9,10.63276655]
[1746643911827,5.55191558,1801.2,1800.9,5.08]
[1746643912022,0.10439633,1801.0,1800.9,5.08]
[1746643912186,5.55216712,1801.1,1800.9,5.08]
[1746643912386,0.10438885,1801.0,1800.9,5.08]
[1746643912730,0.10438885,1801.0,1800.8,5.08]
[1746643913091,5.65687397,1801.0,1800.8,5.08]
[1746643913595,0.10438885,1801.0,1800.8,5.13552469]
[1746643913797,0.10438885,1801.0,1800.8,10.68846261]
[1746643914030,0.10438885,1801.0,1800.8,6.87992508]
[1746643914337,5.5519902,1801.2,1800.8,12.43297338]
[1746643914338,0.10438755,1800.9,1800.8,12.43297338]
[1746643914534,0.10438755,1800.9,1800.8,12.37744869]
[1746643914735,6.36540637,1801.4,1800.9,5.55268351]
[1746643914893,5.55181908,1801.3,1801.0,0.55526835]
[1746643915103,5.55181908,1801.3,1801.0,5.552443]
[1746643915306,5.55136277,1801.4,1801.0,5.552443]
[1746643915812,5.55179761,1801.3,1800.8,22.56729786]
[1746643916035,5.55177305,1801.3,1800.9,5.55266333]
[1746643916354,6.36385589,1801.9,1801.5,5.55064822]
[1746643916550,5.54982963,1801.9,1801.6,2.13550079]
[1746643916710,12.04121428,1802.1,1801.7,6.32226864]
[1746643917045,5.54846584,1802.3,1801.9,5.54958647]
[1746643917217,5.54846584,1802.3,1801.8,7.68524689]
[1746643917218,5.54904416,1802.2,1802.0,2.08]
[1746643917552,0.8244,1802.4,1802.0,2.08]
[1746643917772,5.54894645,1802.2,1802.0,2.08]
[1746643918066,5.54908162,1802.1,1802.0,2.08]
[1746643918888,5.55062166,1801.6,1801.5,2.08]
[1746643920631,5.5514674,1801.4,1801.1,2.08]
[1746643920951,5.55072067,1801.6,1801.2,7.63171094]
[1746643921136,6.491,1801.9,1801.5,5.55091467]
[1746643921327,5.55017169,1801.8,1801.6,2.13550039]
[1746643921529,5.55017169,1801.8,1801.6,2.08]
[1746643921729,7.2444,1802.3,1801.7,0.88490047]
[1746643921930,5.54859792,1802.3,1801.9,5.54960108]
[1746643922246,5.54893965,1802.2,1801.8,7.62978665]
[1746643922557,5.54864599,1802.3,1801.9,6.36805669]
[1746643922774,5.54826448,1802.4,1802.0,7.62923938]
[1746643923886,5.54826448,1802.4,1802.0,2.08]
[1746643923887,5.54848069,1802.3,1802.0,2.08]
[1746643924287,5.54908162,1802.1,1801.8,2.08]
[1746643924475,5.54969754,1801.9,1801.8,2.08]
[1746643924986,5.54895841,1802.2,1801.8,2.08]
[1746643925186,11.09799874,1802.2,1801.8,10.6299032]
[1746643925486,5.54895841,1802.2,1801.8,7.08094403]
[1746643925730,5.54908333,1802.1,1801.8,7.08094403]
[1746643925856,5.54891426,1802.2,1801.8,8.54978447]
[1746643926054,5.54908953,1802.1,1801.8,3.0]
[1746643926288,0.7894,1802.3,1801.7,0.8294]
[1746643926506,5.55092978,1801.5,1801.4,0.7563]
[1746643926701,5.55068603,1801.6,1801.1,0.7664]
[1746643926992,5.55202159,1801.2,1800.9,0.7664]
[1746643927147,5.55139125,1801.4,1801.0,5.55234412]
[1746643927351,5.55139125,1801.4,1800.9,7.12534275]
[1746643927352,5.55123792,1801.4,1800.9,7.12534275]
[1746643927596,5.55225545,1801.1,1800.9,4.57276886]
[1746643927813,5.55133871,1801.4,1801.0,5.6077635]
[1746643928015,6.33837204,1801.5,1801.1,5.55204132]
[1746643928227,0.7801,1801.7,1801.2,0.05551394]
[1746643928518,5.55064674,1801.6,1801.3,0.7929]
[1746643928680,5.55047382,1801.7,1801.4,0.0555067]
[1746643929006,11.10104949,1801.7,1801.3,9.34432441]
[1746643929307,5.55120679,1801.5,1801.3,3.7929]
[1746643929488,5.55120679,1801.5,1801.1,5.55202027]
[1746643929489,5.55126895,1801.4,1801.1,6.35962027]
[1746643929695,11.10277713,1801.4,1801.2,0.63596203]
[1746643929895,11.10277713,1801.4,1801.1,0.8076]
[1746643929896,6.49,1801.8,1801.1,6.35954818]
[1746643930101,5.55074742,1801.6,1801.2,5.60722334]
[1746643930305,11.10161207,1801.6,1801.2,5.55171385]
[1746643930509,5.55074742,1801.6,1801.2,5.55171385]
[1746643930718,5.55049024,1801.7,1801.3,5.55144058]
[1746643931019,6.49,1801.8,1801.1,3.8076]
[1746643931020,12.04007505,1801.8,1801.1,3.8076]
[1746643931185,12.04007505,1801.8,1801.1,4.74359612]
[1746643931186,5.55135794,1801.4,1801.1,4.74359612]
[1746643931572,5.55111179,1801.5,1801.1,4.74359612]
[1746643931777,12.04015186,1801.8,1801.4,5.5510814]
[1746643932015,12.04012077,1801.8,1801.4,5.551074]
[1746643932176,5.55035061,1801.7,1801.5,0.8133]
[1746643932382,5.55035061,1801.7,1801.5,1.44974428]
[1746643932579,12.04012077,1801.8,1801.5,0.8133]
[1746643932992,12.04012077,1801.8,1801.5,6.36419202]
[1746643933329,5.55045712,1801.7,1801.5,0.8133]
[1746643933513,6.49,1801.8,1801.5,0.8133]
[1746643933703,6.49,1801.8,1801.5,1.7497524]
[1746643934122,12.04013075,1801.8,1801.5,1.7497524]
[1746643934415,6.49,1801.8,1801.5,7.30068109]
[1746643934619,5.54984007,1801.9,1801.5,7.30068109]
[1746643934825,5.54948372,1802.0,1801.5,7.30049282]
[1746643935025,11.0985719,1802.1,1801.7,5.55010614]
[1746643935229,5.54940672,1802.0,1801.6,11.83093436]
[1746643935394,5.54940672,1802.0,1801.6,6.28065583]
[1746643935590,5.54969846,1801.9,1801.6,3.73004928]
[1746643935834,5.54969846,1801.9,1801.5,7.3006789]
[1746643935835,5.55014729,1801.8,1801.5,7.3006789]
[1746643936046,5.54960073,1802.0,1801.6,5.55060667]
[1746643936231,5.5492457,1802.1,1801.7,5.5502841]
[1746643936426,5.54950166,1802.0,1801.6,5.55060667]
[1746643936948,5.55062166,1801.6,1801.3,0.7931]
[1746643937257,5.55119739,1801.5,1801.3,0.7931]
[1746643937602,5.55308751,1800.8,1800.7,0.7943]
[1746643937820,5.55290578,1800.9,1800.7,0.7943]
[1746643938007,6.459,1801.0,1800.6,5.55366725]
[1746643938367,12.01157287,1801.0,1800.7,0.61089488]
[1746643938510,5.5529364,1800.9,1800.5,6.32635911]
[1746643938723,5.55277916,1800.9,1800.5,6.32645923]
[1746643938938,12.01163519,1801.0,1800.6,5.55347503]
[1746643939127,6.459,1801.0,1800.6,5.60900111]
[1746643939310,12.01149272,1801.0,1800.7,5.55335014]
[1746643939516,12.01149272,1801.0,1800.8,0.55533501]
[1746643939716,12.01149272,1801.0,1800.6,5.55349838]
[1746643939951,5.55294197,1800.9,1800.5,6.32630197]
[1746643940126,5.55328802,1800.8,1800.5,3.7725]
[1746643940322,12.01168155,1801.0,1800.6,0.05552945]
[1746643940539,5.55278296,1800.9,1800.5,9.32635556]
[1746643940735,12.01168155,1801.0,1800.6,6.48620776]
[1746643940736,6.459,1801.0,1800.6,6.48620776]
[1746643940936,6.459,1801.0,1800.9,5.55277916]
[1746643941124,5.55166636,1801.3,1800.9,5.55277916]
[1746643941328,5.55187819,1801.2,1800.8,9.3234453]
[1746643942249,5.55187819,1801.2,1800.8,9.32337047]
[1746643942546,5.55139892,1801.4,1801.0,11.10474997]
[1746643942752,5.55139892,1801.4,1801.0,5.55228633]
[1746643943114,6.46,1801.5,1801.2,6.34887128]
[1746643943553,6.46,1801.5,1801.3,5.55148883]
[1746643943744,5.55063923,1801.6,1801.3,4.19003601]
[1746643943912,5.5510538,1801.5,1801.2,3.7972]
[1746643944114,5.550753,1801.6,1801.2,3.7972]
[1746643944359,5.550753,1801.6,1801.2,9.34888582]
[1746643944648,5.55105377,1801.5,1801.2,0.7972]
[1746643944850,11.1022306,1801.5,1801.2,0.7972]
[1746643945155,5.55105377,1801.5,1801.2,0.7972]
[1746643945756,5.55124659,1801.4,1801.2,0.7972]
[1746643945967,5.55105377,1801.5,1801.2,1.17692]
[1746643946513,25.55049173,1801.7,1801.3,5.55135315]
[1746643946730,20.0,1801.7,1801.4,0.0555066]
[1746643946939,25.55042778,1801.7,1801.3,5.55133109]
[1746643947138,25.55032633,1801.7,1801.4,0.55513311]
[1746643947357,5.55071832,1801.6,1801.3,3.0]
[1746643947542,5.55071832,1801.6,1801.3,8.55152933]
[1746643947852,25.55032633,1801.7,1801.3,8.55152933]
[1746643948129,6.46,1801.9,1801.2,6.72855039]
[1746643948130,5.55113345,1801.5,1801.2,4.17692]
[1746643948350,5.55080401,1801.6,1801.3,3.0]
[1746643948545,5.55046785,1801.7,1801.3,4.02836259]
[1746643948875,6.46,1801.9,1801.3,4.02836259]
[1746643948876,6.46,1801.9,1801.6,9.32129137]
[1746643949158,6.46,1801.9,1801.7,0.05549589]
[1746643949355,6.46,1801.9,1801.7,5.60577904]
[1746643949558,5.5492566,1802.1,1801.8,5.54999068]
[1746643949745,5.54899592,1802.2,1801.9,0.55499907]
[1746643949946,5.54908616,1802.1,1801.9,0.55499907]
[1746643950461,6.46,1802.3,1802.0,6.36348438]
[1746643950622,5.54862223,1802.3,1802.0,0.7588]
[1746643951114,26.35715421,1802.5,1801.9,3.0]
[1746643951322,5.54923174,1802.1,1801.8,0.7588]
[1746643951725,5.54898752,1802.2,1801.8,0.7588]
[1746643951934,5.54898752,1802.2,1801.9,3.0]
[1746643953057,5.54949898,1802.0,1801.8,0.7588]
[1746643953225,5.54949898,1802.0,1801.6,5.55050417]
[1746643953426,5.54949898,1802.0,1801.6,13.10859611]
[1746643953729,5.54926571,1802.1,1801.7,5.55018065]
[1746643954139,5.54943217,1802.0,1801.7,5.55018065]
[1746643954322,5.54976201,1801.9,1801.6,5.00766051]
[1746643954526,6.30823217,1802.0,1801.6,10.55808948]
[1746643954751,5.54987901,1801.9,1801.6,5.00766051]
[1746643954954,6.30837652,1802.0,1801.6,10.55817197]
[1746643955128,5.54971262,1801.9,1801.6,5.00766051]
[1746643955449,6.30837652,1802.0,1801.6,8.55036735]
[1746643955649,6.30837652,1802.0,1801.5,0.7858]
[1746643955650,0.7588,1802.0,1801.5,0.7858]
[1746643955855,5.55062166,1801.6,1801.3,5.55151062]
[1746643956051,5.55062166,1801.6,1801.2,13.14380252]
[1746643956253,5.55115209,1801.5,1801.2,1.13212]
[1746643956560,0.7761,1801.6,1801.2,5.93145207]
[1746643956764,5.5502038,1801.8,1801.3,6.20003022]
[1746643956969,5.55046798,1801.7,1801.4,0.7683]
[1746643957930,5.55000555,1801.8,1801.4,0.7683]
[1746643958136,5.55077253,1801.6,1801.4,0.7683]
[1746643958774,5.55094947,1801.5,1801.2,4.16502]
[1746643958973,0.8248,1801.9,1801.0,1.20693685]
[1746643959175,5.5525527,1801.0,1800.7,0.7853]
[1746643959477,5.55283722,1800.9,1800.7,0.7853]
[1746643959779,5.55341853,1800.7,1800.4,0.8077]
[1746643959963,5.55423605,1800.5,1800.2,4.70709501]
[1746643960140,5.55458825,1800.4,1800.2,4.70709501]
[1746643960773,5.55462978,1800.3,1800.2,4.70709501]
[1746643961445,5.55458825,1800.4,1800.2,4.70709501]
[1746643961645,5.5540612,1800.5,1800.2,5.60421545]
[1746643961846,5.55462978,1800.3,1800.2,4.70709501]
[1746643963335,6.34892978,1800.3,1800.2,4.70709501]
[1746643964376,5.55450035,1800.4,1800.2,4.70709501]
[1746643964777,5.55462978,1800.3,1800.2,4.70709501]
[1746643965074,5.55462978,1800.3,1799.9,0.7553]
[1746643965075,5.55497499,1800.2,1799.9,0.7553]
[1746643965275,5.55462978,1800.3,1799.9,6.98471261]
[1746643965512,5.55404262,1800.5,1799.9,1.42891717]
[1746643965638,5.55524724,1800.1,1799.8,0.42486276]
[1746643965978,5.55509097,1800.2,1799.8,5.55606344]
[1746643966176,5.55476071,1800.3,1799.9,5.5557799]
[1746643966364,5.55476071,1800.3,1799.9,5.61133192]
[1746643966874,5.55465783,1800.3,1799.9,5.61130307]
[1746643967180,5.55465783,1800.3,1800.0,0.56113031]
[1746643969464,5.55457679,1800.4,1800.0,6.11664911]
[1746643970138,5.55443461,1800.4,1800.0,0.56113031]
[1746643970334,5.55443461,1800.4,1800.1,0.0555444]
[1746643970540,5.55419593,1800.5,1800.1,5.61076878]
[1746643970741,5.5545379,1800.4,1800.1,1.17274217]
[1746643970956,5.5545379,1800.4,1800.1,6.7835266]
[1746643971152,5.55416276,1800.5,1800.1,12.33861631]
[1746643971483,5.55432836,1800.4,1800.1,7.51673188]
[1746643971710,5.55432836,1800.4,1800.0,5.67466038]
[1746643972009,5.55432836,1800.4,1800.1,5.61076106]
[1746643974205,5.55432836,1800.4,1800.1,0.05554442]
[1746643974412,5.55491509,1800.3,1799.9,5.555681]
[1746643974586,11.10979106,1800.3,1799.9,5.555681]
[1746643974770,5.55446669,1800.4,1800.0,5.55541969]
[1746643975106,5.55446669,1800.4,1800.1,0.05554636]
[1746643975801,5.55579784,1800.0,1799.7,3.8158]
[1746643975970,5.55589002,1799.9,1799.5,6.37774148]
[1746643976176,5.55628461,1799.8,1799.5,2.01429789]
[1746643976699,5.55607594,1799.9,1799.5,2.01429789]
[1746643976924,5.55631023,1799.8,1799.5,0.8208]
[1746643977104,5.55679039,1799.6,1799.5,0.005]
[1746643978821,5.55679039,1799.6,1798.6,0.005]
[1746643978822,0.8188,1799.5,1798.6,0.005]
[1746643978974,5.5595708,1798.7,1798.6,0.005]
[1746643980211,6.67146499,1798.7,1798.6,0.005]
[1746643984348,7.47156499,1798.7,1798.6,0.005]
[1746643984543,6.3599799,1798.6,1798.5,0.005]
[1746643984842,6.3599799,1798.6,1797.6,0.81576969]
[1746643984843,6.3627634,1797.7,1797.6,0.81576969]
[1746643985050,21.0162891,1797.7,1797.6,0.81576969]
[1746643985329,21.5662891,1797.7,1797.6,0.81576969]
[1746643985728,21.83946896,1797.7,1797.6,0.81576969]
[1746643986234,6.38881099,1797.2,1796.9,0.6667]
[1746643986418,21.04233669,1797.2,1796.9,0.6667]
[1746643986596,21.59233669,1797.2,1796.9,0.6667]
[1746643986790,22.01976994,1797.2,1796.9,0.6667]
[1746643987012,9.92843027,1797.0,1796.9,0.6667]
[1746643988251,6.31717907,1796.5,1796.4,0.4340257]
[1746643988394,16.33417907,1796.5,1796.4,0.4340257]
[1746643989745,16.33417907,1796.5,1796.2,2.97322253]
[1746643989746,6.75019883,1796.3,1796.2,2.97322253]
[1746643989947,14.30652453,1796.3,1796.2,2.34002253]
[1746643990147,9.11823876,1795.9,1795.8,1.30103282]
[1746643990492,9.11947925,1795.5,1795.0,11.22461119]
[1746643990624,8.56947925,1795.5,1795.0,11.22461119]
[1746643990818,15.03447925,1795.5,1795.0,11.22461119]
[1746643991037,15.03447925,1795.5,1795.4,7.9158531]
[1746643992134,12.03447925,1795.5,1795.4,7.9158531]
[1746643992307,12.53447925,1795.5,1795.4,7.9158531]
[1746643992512,12.03447925,1795.5,1795.4,7.9158531]
[1746643992729,12.03447925,1795.5,1794.9,5.57131526]
[1746643993035,5.56997941,1795.4,1794.9,0.58213153]
[1746643993233,6.465,1795.5,1795.1,5.57059984]
[1746643993396,0.3993,1795.9,1795.4,5.56974902]
[1746643993597,12.03496791,1796.0,1795.4,0.8115]
[1746643993795,6.467,1796.0,1795.7,5.5688244]
[1746643993999,6.467,1796.0,1795.6,5.56904193]
[1746643994272,6.467,1796.0,1795.6,6.13151201]
[1746643994553,6.467,1796.0,1795.7,5.56870329]
[1746643994853,6.467,1796.4,1795.9,5.56823819]
[1746643995334,6.467,1796.4,1795.7,6.33071953]
[1746643995539,6.467,1796.4,1795.9,5.56810629]
[1746643995703,12.0337059,1796.4,1795.9,5.56822703]
[1746643995909,6.467,1796.4,1795.9,5.56822703]
[1746643996406,6.467,1796.4,1795.8,5.56854883]
[1746643996607,6.467,1796.4,1796.2,5.56715812]
[1746643996914,20.036,1796.7,1796.3,6.37179883]
[1746643997111,6.468,1796.8,1796.4,5.62217516]
[1746643997434,6.468,1796.8,1796.4,0.05566644]
[1746643997603,6.468,1796.8,1796.4,5.56666345]
[1746643997802,6.468,1796.8,1796.4,5.56647995]
[1746643998026,6.468,1796.8,1796.3,6.37156446]
[1746643998227,6.468,1796.8,1796.3,1.79761874]
[1746643998471,6.468,1796.8,1796.6,5.56585595]
[1746643998631,6.468,1797.2,1796.7,5.56575944]
[1746643998826,6.468,1797.2,1796.6,5.56593917]
[1746643999025,6.468,1797.2,1796.7,5.56574046]
[1746643999253,6.468,1797.2,1796.7,5.56564692]
[1746643999528,12.03243219,1797.2,1796.6,5.56601689]
[1746643999765,5.56533393,1796.9,1796.3,6.37160587]
[1746643999938,6.468,1797.2,1796.3,7.00876646]
[1746644000138,5.56523891,1796.9,1796.3,6.37160587]
[1746644000458,5.56523891,1796.9,1796.3,11.93842256]
[1746644000657,5.56523891,1796.9,1796.3,11.93839242]
[1746644000958,5.56484281,1797.0,1796.4,5.56659993]
[1746644001172,5.56516263,1796.9,1796.4,5.566558]
[1746644001353,6.468,1797.2,1796.4,1.19383231]
[1746644001537,6.468,1797.2,1796.6,5.56606924]
[1746644001737,5.56352063,1797.5,1797.0,5.56467327]
[1746644001951,12.03114386,1797.6,1797.0,5.56463602]
[1746644002177,6.468,1797.6,1797.4,5.56346461]
[1746644002466,12.80223573,1798.0,1797.1,7.18388992]
[1746644002666,12.80223573,1798.0,1797.4,5.56337762]
[1746644002667,5.56237102,1797.8,1797.4,5.56337762]
[1746644002852,5.56248142,1797.8,1797.0,3.0]
[1746644003061,5.56267165,1797.7,1797.2,5.5639571]
[1746644003263,5.56267165,1797.7,1797.0,3.0]
[1746644003264,5.56250964,1797.8,1797.4,5.56347051]
[1746644003651,7.2403,1798.0,1797.1,5.56439319]
[1746644003848,5.56288853,1797.7,1797.2,5.56408916]
[1746644004052,5.56288853,1797.7,1797.3,5.56372864]
[1746644004467,5.56288768,1797.7,1797.2,6.32681238]
[1746644004758,5.56288768,1797.7,1796.9,5.56508824]
[1746644004759,5.56357943,1797.5,1797.0,6.32742639]
[1746644005076,5.5620446,1797.9,1797.1,5.56441651]
[1746644005243,12.80208802,1798.0,1797.2,5.56398329]
[1746644005244,5.56268455,1797.7,1797.2,5.56398329]
[1746644005440,5.56308259,1797.6,1797.2,5.56398329]
[1746644005645,5.56281258,1797.7,1797.2,5.56398329]
[1746644005875,12.80205647,1798.0,1797.2,5.56416156]
[1746644005876,7.2403,1798.0,1797.2,5.56416156]
[1746644006076,5.56343216,1797.5,1797.0,6.32755054]
[1746644006383,5.56317042,1797.6,1797.1,5.56431301]
[1746644006590,5.56256994,1797.8,1797.0,1.39555505]
[1746644006753,5.56209988,1797.9,1797.4,5.56335512]
[1746644007087,5.56253989,1797.8,1797.3,5.56366219]
[1746644007251,5.56265384,1797.8,1797.3,5.56365068]
[1746644007454,5.56265384,1797.8,1797.4,5.56347144]
[1746644007786,5.56279238,1797.7,1797.5,0.8261]
[1746644007990,5.56251071,1797.8,1797.5,0.8261]
[1746644008188,5.56222215,1797.9,1797.5,0.8261]
[1746644008394,6.468,1798.0,1797.4,5.56339229]
[1746644008546,5.56238273,1797.8,1797.3,6.36248255]
[1746644008861,5.56276751,1797.7,1797.3,6.36248255]
[1746644009070,5.56242043,1797.8,1797.4,5.56344732]
[1746644009242,5.56319668,1797.6,1797.3,0.7987]
[1746644009573,5.56273228,1797.7,1797.3,0.7987]
[1746644009780,6.468,1798.0,1797.3,0.7987]
[1746644009944,5.56247981,1797.8,1797.3,6.36242406]
[1746644010150,5.56291875,1797.7,1797.3,0.7987]
[1746644010349,5.56315756,1797.6,1797.3,0.7987]
[1746644010788,5.5620446,1797.9,1797.3,6.36238971]
[1746644010978,5.56280771,1797.7,1797.3,6.36238971]
[1746644011142,6.466,1798.0,1797.4,5.56354983]
[1746644011344,5.56226174,1797.9,1797.5,5.56317855]
[1746644011595,5.5615766,1798.1,1797.7,5.56247226]
[1746644011795,5.56127428,1798.2,1797.8,5.56214044]
[1746644011998,6.466,1798.4,1798.0,5.56173526]
[1746644012296,6.466,1798.4,1798.0,5.56153731]
[1746644012450,12.02657403,1798.4,1798.0,5.56156967]
[1746644012864,12.02665263,1798.4,1797.9,2.08]
[1746644013085,12.02663278,1798.4,1798.0,5.56173281]
[1746644013444,6.466,1798.4,1798.1,6.33411862]
[1746644013653,5.55971803,1798.7,1798.2,7.64087614]
[1746644013882,5.55971803,1798.7,1798.3,7.64064519]
[1746644014063,6.466,1798.8,1798.5,6.33278736]
[1746644014258,5.55880633,1799.0,1798.5,6.3326657]
[1746644014489,5.55880633,1799.0,1798.6,5.55959012]
[1746644014787,5.55880633,1799.0,1798.7,2.08]
[1746644015888,5.55896218,1798.9,1798.7,2.08]
[1746644016087,5.55926173,1798.8,1798.7,2.08]
[1746644016261,5.55911361,1798.9,1798.7,2.08]
[1746644016466,5.55884269,1799.0,1798.7,2.08]
[1746644016758,5.55884269,1799.0,1798.8,2.08]
[1746644016949,5.5585629,1799.1,1798.8,2.08]
[1746644017148,5.55877539,1799.0,1798.8,2.08]
[1746644017893,5.55850532,1799.1,1798.7,5.55954834]
[1746644018082,5.55883066,1799.0,1798.6,5.55974878]
[1746644018277,6.466,1799.2,1798.5,6.33272984]
[1746644018278,11.11830762,1798.9,1798.5,6.33272984]
[1746644018587,5.55906187,1798.9,1798.5,11.89270765]
[1746644018981,5.55877946,1799.0,1798.6,5.55976081]
[1746644019286,5.55853799,1799.1,1798.7,5.55956446]
[1746644019485,11.11712265,1799.1,1798.7,5.55956446]
[1746644019854,5.55868051,1799.0,1798.7,5.55956446]
[1746644020054,5.55856638,1799.1,1798.6,5.55973084]
[1746644020256,6.466,1799.2,1798.8,5.55898325]
[1746644020478,12.02418614,1799.2,1798.9,0.8188]
[1746644020760,5.55777957,1799.3,1798.9,6.43314299]
[1746644020761,5.55782326,1799.3,1798.9,6.43314299]
[1746644020959,5.55782326,1799.3,1798.9,6.43310723]
[1746644021277,5.55772904,1799.3,1799.0,5.55846272]
[1746644021453,5.55754192,1799.4,1799.0,5.55846272]
[1746644021650,6.463,1799.6,1799.0,5.55846272]
[1746644021651,6.463,1799.6,1799.0,5.84830378]
[1746644021855,7.2705,1800.0,1799.4,5.55727355]
[1746644022097,5.5562993,1799.8,1799.4,5.55721541]
[1746644022283,5.5567962,1799.6,1799.3,0.7641]
[1746644022481,5.55673992,1799.7,1799.3,0.7641]
[1746644022794,5.55671728,1799.7,1799.3,11.87914167]
[1746644022969,5.5562904,1799.8,1799.4,5.55739642]
[1746644023370,5.5562904,1799.8,1799.4,5.5572684]
[1746644023678,5.55594748,1799.9,1799.5,5.55703285]
[1746644023877,5.55594748,1799.9,1799.3,6.39849168]
[1746644024196,5.55630307,1799.8,1799.4,5.55724772]
[1746644024364,12.01875959,1800.0,1799.6,5.55667873]
[1746644024693,5.55534787,1800.1,1799.6,5.21057751]
[1746644024863,5.55543379,1800.1,1799.6,10.76715978]
[1746644025068,6.461,1800.4,1799.7,5.556279]
[1746644025259,5.55462978,1800.3,1799.6,11.18724066]
[1746644025457,5.55608723,1799.9,1799.6,5.63062691]
[1746644025783,5.55507608,1800.2,1799.6,5.63062691]
[1746644025967,6.461,1800.4,1799.7,5.55634279]
[1746644026171,5.55513655,1800.2,1799.8,5.55614089]
[1746644026480,5.55557721,1800.0,1799.6,11.18717622]
[1746644026877,5.55526108,1800.1,1799.7,0.7577]
[1746644026878,5.55540242,1800.1,1799.7,0.7577]
[1746644027087,5.55468016,1800.3,1799.7,0.7577]
[1746644027088,5.55580217,1800.0,1799.7,0.7577]
[1746644027380,5.55588467,1799.9,1799.7,0.7577]
[1746644027557,12.01546315,1800.4,1799.7,0.7577]
[1746644027558,5.55562817,1800.0,1799.7,0.7577]
[1746644027757,5.55545521,1800.1,1799.7,0.7577]
[1746644027957,5.55567263,1800.0,1799.7,0.7577]
[1746644028180,5.55467787,1800.3,1799.7,0.7577]
[1746644028382,5.5553583,1800.1,1799.7,6.31413823]
[1746644028594,5.5553583,1800.1,1799.7,6.31401554]
[1746644028760,5.55596825,1799.9,1799.7,0.7577]
[1746644028966,5.55575891,1800.0,1799.7,0.7577]
[1746644029266,5.55542969,1800.1,1799.7,6.31394261]
[1746644029678,5.55496563,1800.2,1799.7,6.31397907]
[1746644029885,5.55534266,1800.1,1799.7,6.31397907]
[1746644030200,5.55513641,1800.2,1799.8,5.61171605]
[1746644030373,12.01540319,1800.4,1799.7,6.31397793]
[1746644030584,5.55501856,1800.2,1799.8,5.55604444]
[1746644030896,5.55525974,1800.1,1799.8,5.55604444]
[1746644031095,5.55525974,1800.1,1799.7,6.31397793]
[1746644031400,5.55462978,1800.3,1799.7,0.7577]
[1746644031584,5.55599702,1799.9,1799.7,0.7577]
[1746644031960,5.55619607,1799.8,1799.5,0.8258]
[1746644032290,5.55619607,1799.8,1799.5,3.8258]
[1746644032493,5.55770169,1799.4,1799.2,0.7912]
[1746644032696,5.5581774,1799.2,1798.9,0.7912]
[1746644033090,5.55786802,1799.3,1798.9,9.3500583]
[1746644033287,0.7678,1799.5,1798.9,0.7912]
[1746644033288,5.55864369,1799.0,1798.9,0.7912]
[1746644033483,5.55849288,1799.1,1798.6,6.3143808]
[1746644033686,5.55806728,1799.2,1798.8,5.55912104]
[1746644033857,0.7678,1799.5,1798.7,5.62760342]
[1746644034064,5.5574098,1799.4,1799.1,5.55811761]
[1746644034262,5.5574098,1799.4,1799.0,5.5584376]
[1746644034464,5.55697205,1799.6,1799.0,5.21057751]
[1746644034664,5.55697205,1799.6,1799.2,5.5578129]
[1746644034859,6.458,1799.7,1798.9,0.8173]
[1746644035084,5.55769602,1799.4,1799.1,5.55832291]
[1746644035288,5.55769602,1799.4,1799.0,5.55858374]
[1746644035490,5.55711157,1799.5,1799.1,5.61388054]
[1746644035685,5.55711157,1799.5,1799.1,5.55830033]
[1746644035686,5.55742276,1799.4,1799.1,5.55830033]
[1746644035888,5.55775179,1799.3,1798.9,11.93481586]
[1746644036090,5.55781319,1799.3,1798.9,6.37604068]
[1746644036367,5.55723924,1799.5,1799.1,5.55820737]
[1746644036570,5.55723924,1799.5,1799.0,5.55864369]
[1746644036768,5.55723924,1799.5,1799.1,5.5581093]
[1746644037394,5.55755052,1799.4,1799.0,11.75460065]
[1746644037595,5.55755052,1799.4,1799.0,11.75451795]
[1746644037794,5.55755052,1799.4,1799.1,5.55832537]
[1746644038304,5.55755052,1799.4,1798.9,0.8173]
[1746644038305,5.55783933,1799.3,1798.9,6.37608316]
[1746644038604,5.55783933,1799.3,1799.0,5.55861994]
[1746644039113,5.55846282,1799.1,1798.9,0.8173]
[1746644039269,5.55846282,1799.1,1798.7,1.20262591]
[1746644039468,5.55846282,1799.1,1798.8,3.0]
[1746644039670,5.55785749,1799.3,1798.7,1.20262591]
[1746644039871,5.55812083,1799.2,1798.8,5.55911462]
[1746644040067,5.55785749,1799.3,1798.9,5.55889763]
[1746644040068,5.55789208,1799.3,1798.9,5.55889763]
[1746644040272,5.55772697,1799.3,1798.9,5.558792]
[1746644040471,6.3360626,1799.4,1798.9,5.55876435]
[1746644040698,5.5575626,1799.4,1799.0,5.55853307]
[1746644040893,5.5580143,1799.3,1798.9,5.55871276]
[1746644041080,5.55808491,1799.2,1798.8,8.55920737]
[1746644041288,5.55844478,1799.1,1798.8,3.0]
[1746644042109,5.55845568,1799.1,1798.7,3.7856]
[1746644042309,5.55845568,1799.1,1798.7,9.34499788]
[1746644042608,11.11516431,1799.4,1799.0,5.55862377]
[1746644042808,11.11516431,1799.4,1798.9,5.55891503]
[1746644042809,0.8173,1799.6,1798.8,5.21057751]
[1746644043011,5.55774565,1799.3,1798.9,5.55892516]
[1746644043177,5.55847591,1799.1,1798.7,11.25834637]
[1746644043372,5.55822927,1799.2,1798.8,5.55923614]
[1746644043597,5.55822927,1799.2,1798.8,5.55904275]
[1746644043905,5.55772257,1799.3,1798.9,5.61428051]
[1746644044115,5.55772257,1799.3,1798.9,5.55895161]
[1746644044417,5.55801412,1799.3,1798.8,5.55905887]
[1746644044576,11.11529557,1799.4,1799.0,5.55836271]
[1746644044776,5.55803791,1799.2,1798.8,11.50363129]
[1746644045009,5.55803791,1799.2,1798.9,5.55895142]
[1746644045310,5.5584405,1799.1,1798.7,4.20295748]
[1746644045473,0.7933,1799.1,1798.5,6.34789263]
[1746644045677,5.55877196,1799.0,1798.6,5.55964798]
[1746644046214,5.55848254,1799.1,1798.7,5.55943609]
[1746644046513,5.5590238,1798.9,1798.5,6.63316677]
[1746644046694,5.5590238,1798.9,1798.5,11.55837465]
[1746644046914,5.55847374,1799.1,1798.5,7.71024701]
[1746644047094,5.55847374,1799.1,1798.7,5.55943489]
[1746644047290,5.55865784,1799.0,1798.5,5.99837751]
[1746644047491,5.55914785,1798.9,1798.5,11.55844437]
[1746644047709,5.55902024,1798.9,1798.5,11.55835794]
[1746644048026,5.55862821,1799.1,1798.7,5.55945183]
[1746644048224,5.55874836,1799.0,1798.6,5.55969992]
[1746644048428,5.55782923,1799.3,1798.9,5.55880858]